Cogmind - Beta 9.1 @@@ ROGUE MODE // 2019.10.31 @ 23:10:41 Player: TehFrederick Result: Destroyed by G-47 Trooper with Particle Gun Performance ------------- Evolutions (0) 0 Regions Visited (1) 200 Robots Destroyed (5) 25 Value Destroyed (165) 165 Prototype IDs (0) 0 Alien Tech Used (0) 0 Bonus (0) 0 TOTAL SCORE: 390 Bonus ------- None Cogmind --------- Core Integrity 0/250 Matter 287/300 Energy 100/100 System Corruption 3% Temperature Cool (9) Location -10/Materials Parts ------- Power (1) Propulsion (2) Light Treads Aluminum Leg Utility (2) Improved Heat Sink Small Storage Unit Weapon (2) Inventory (6) Light Ion Engine Peak State ------------ Power Light Ion Engine Propulsion Aluminum Leg Aluminum Leg Utility Small Storage Unit Weapon EM Pulse Gun Assault Rifle Inventory (Empty) [Rating: 6] Favorites ----------- Power Light Ion Engine Engine Light Ion Engine Propulsion Aluminum Leg Treads Light Treads Leg Aluminum Leg Utility Small Storage Unit Device Improved Heat Sink Storage Small Storage Unit Weapon Assault Rifle Energy Gun EM Pulse Gun Ballistic Gun Assault Rifle Build | -11 -10 ------- Run | Scr Mat Slots Evolved . | . . Power . | . . Propulsion . | . . Utility . | . . Weapon . | . . Parts Attached 10 | 6 4 Power 1 | 1 . Engine 1 | 1 . Core . | . . Reactor . | . . Propulsion 4 | 2 2 Treads 1 | . 1 Leg 3 | 2 1 Wheel . | . . Hover . | . . Flight . | . . Utility 2 | 1 1 Device 1 | . 1 Storage 1 | 1 . Processor . | . . Hackware . | . . Protection . | . . Artifact . | . . Weapon 3 | 2 1 Energy Gun 2 | 1 1 Energy Cannon . | . . Ballistic Gun 1 | 1 . Ballistic Cannon . | . . Launcher . | . . Special Weapon . | . . Impact Weapon . | . . Slashing Weapon . | . . Piercing Weapon . | . . Special Melee Weapon . | . . Unidentified Prototypes . | . . Parts Lost 6 | . 6 Power 1 | . 1 Propulsion 2 | . 2 Utility . | . . Weapon 3 | . 3 Highest Loss Streak 6 | . 6 Average Slot Usage (%) 69 | . 69 Engine 7 | . 7 Treads 4 | . 4 Leg 18 | . 18 Device 2 | . 2 Storage 14 | . 14 Energy Gun 10 | . 10 Ballistic Gun 11 | . 11 Naked Turns . | . . Heaviest Build 11 | 11 11 Greatest Support 20 | 20 20 Greatest Overweight (x) . | . . Average Overweight (x) . | . . Largest Inventory Capacity 6 | 6 6 Average Capacity 5 | 5 6 Most Carried 2 | 2 2 Average Carried 1 | . 1 Final Capacity 6 | 6 6 Final Carried 2 | 2 1 Class Distribution -------------------- 100% | Mutant Dominant Class ---------------- Mutant | -10/Materials Resources | -11 -10 ----------- Run | Scr Mat Matter Collected 257 | 178 79 Remotely . | . . Salvage Created 207 | . 207 Parts 13 | . 13 Haulers Intercepted . | . . Recyclers Shooed . | . . Parts Field Recycled . | . . Retrieved Matter . | . . Parts Self-Destructed . | . . Prevented . | . . Kills | -11 -10 ------- Run | Scr Mat Combat Hostiles Destroyed 4 | . 4 Guns 4 | . 4 Classes Destroyed 2 | . 2 Watcher 1 | . 1 Grunt 4 | . 4 Best Kill Streak 2 | . 2 Combat Bots Only 2 | . 2 Max Kills in Single Turn 1 | . 1 Gunslinging . | . . Exploded . | . . Melee . | . . Uniques/NPCs Destroyed . | . . Combat | -11 -10 -------- Run | Scr Mat Damage Taken 900 | . 900 Core 259 | . 259 Absorbed by Shields . | . . Core Remaining (%) 100 | 100 . Volleys Fired 25 | . 25 Largest 2 | . 2 Hottest 60 | . 60 Shots Fired 46 | . 46 Gun 46 | . 46 Cannon . | . . Launcher . | . . Special . | . . Kinetic 21 | . 21 Thermal 14 | . 14 Explosive . | . . Electromagnetic 11 | . 11 Robot Hit Streak 17 | . 17 Robot Miss Streak 3 | . 3 Penetration Max . | . . Secondary Targets . | . . Shots Hit Robots 36 | . 36 Core Hits 15 | . 15 Critical Hits . | . . Critical Kills . | . . Critical Parts Destroyed . | . . Melee Attacks . | . . Impact . | . . Slashing . | . . Piercing . | . . Sneak Attacks . | . . Combat Hostiles . | . . Follow-up Attacks . | . . Damage Inflicted 580 | . 580 Guns 481 | . 481 Cannons . | . . Explosions 73 | . 73 Melee . | . . Ramming 26 | . 26 Kinetic 186 | . 186 Thermal 223 | . 223 Explosive . | . . Electromagnetic 145 | . 145 Impact . | . . Slashing . | . . Piercing . | . . Highest Corruption 3 | . 3 Average Corruption 2 | . 2 Corruption Purged . | . . Overload Shots . | . . Overflow Damage . | . . Projectiles . | . . Explosions . | . . Melee . | . . Knockbacks . | . . Impact . | . . Kinetic . | . . Secondary . | . . Self-Inflicted Damage 56 | . 56 Shots 1 | . 1 Rammed 13 | . 13 Targets Rammed 18 | . 18 Kicked 5 | . 5 Crushed . | . . Highest Temperature 48 | . 48 Average Temperature 18 | . 18 Received Heat Transfer 486 | . 486 Siege Activations . | . . Robots Corrupted . | . . Combat Hostiles . | . . Parts Fried . | . . Impact Corruptions . | . . Robots Melted . | . . Combat Hostiles . | . . Parts Melted 2 | . 2 Heat Transferred 450 | . 450 Parts Sabotaged . | . . Parts Stolen . | . . Parts Stripped . | . . Power Chain Reactions 1 | . 1 Missiles Intercepted . | . . Alert | -11 -10 ------- Run | Scr Mat Peak Influence 87 | . 87 Average Influence 31 | . 42 Maximum Alert Level . | . . Low Security (%) 100 | . . Level 1 . | . . Level 2 . | . . Level 3 . | . . Level 4 . | . . Level 5 . | . . High Security . | . . Max Security . | . . Squads Dispatched 1 | . 1 Investigation . | . . Extermination . | . . Reinforcement 1 | . 1 Assault . | . . Garrison . | . . Intercept . | . . Construction Impeded . | . . Haulers Reinforced . | . . Stealth | -11 -10 --------- Run | Scr Mat Distress Signals 1 | . 1 Communications Jammed . | . . Distress Signals . | . . Times Spotted 9 | . 9 Peak Tracking Total 6 | . 6 Tactical Retreats . | . . Traps | -11 -10 ------- Run | Scr Mat Traps Triggered . | . . Indirectly . | . . Trap Hack Attempts . | . . Triggered . | . . Disarmed . | . . Reprogrammed . | . . Reused . | . . Traps Extracted . | . . Installed . | . . Triggered . | . . Machines | -11 -10 ---------- Run | Scr Mat Machines Disabled . | . . Max in Single Turn . | . . Machines Sabotaged . | . . Garrisons Compromised . | . . Overloaded Fab Kills . | . . Fab Network Shutdowns . | . . Hacking | -11 -10 --------- Run | Scr Mat Machines Accessed 1 | . 1 Terminals 1 | . 1 Fabricators . | . . Repair Stations . | . . Recycling Units . | . . Scanalyzers . | . . Garrison Access . | . . Total Hacks 2 | . 2 Successful . | . . Failed 2 | . 2 Catastrophic . | . . Database Lockouts . | . . Manual . | . . Terminals 2 | . 2 Fabricators . | . . Repair Stations . | . . Recycling Units . | . . Scanalyzers . | . . Garrison Access . | . . Terminal Hacks . | . . Fabricator Hacks . | . . Repair Station Hacks . | . . Recycling Unit Hacks . | . . Scanalyzer . | . . Garrison Access Hacks . | . . Unauthorized Hacks . | . . Terminals . | . . Fabricators . | . . Repair Stations . | . . Recycling Units . | . . Scanalyzers . | . . Garrison Access . | . . Data Cores Recovered . | . . Used . | . . Hacking Detections 1 | . 1 Full Trace Events . | . . Feedback Events . | . . Feedback Blocked . | . . Robot Schematics Acquired . | . . Robots Built . | . . Matter . | . . Time . | . . Total Robot Build Rating . | . . Part Schematics Acquired . | . . Parts Built . | . . Matter . | . . Time . | . . Total Part Build Rating . | . . Parts Repaired . | . . Time . | . . Parts Recycled . | . . Recycled Matter . | . . Retrieved Matter . | . . Retrieved Components . | . . Parts Scanalyzed . | . . Part Schematics Acquired . | . . Parts Damaged . | . . Bothacking | -11 -10 ------------ Run | Scr Mat Used RIF Installer . | . . Robots Hacked . | . . Non-combat . | . . Combat . | . . Robot Hacks Applied . | . . Relay Couplers Released . | . . Robots Rewired . | . . Allies Hacked . | . . Hacks Repelled . | . . Allies | -11 -10 -------- Run | Scr Mat Total Allies . | . . Largest Group . | . . Highest-Rated Group . | . . Highest-Rated Ally . | . . Total Orders . | . . Ally Attacks . | . . Total Damage . | . . Kills . | . . Allies Corrupted . | . . Allies Melted . | . . Intel | -11 -10 ------- Run | Scr Mat Robot Analysis Total . | . . Derelict Logs Recovered . | . . Drone Launches . | . . Drone Recoveries . | . . Exploration | -11 -10 ------------- Run | Scr Mat Turns Passed 266 | 66 200 Spaces Moved 117 | 50 67 Core 8 | 8 . Treads 4 | . 4 Legs 105 | 42 63 Wheels . | . . Hover . | . . Flight . | . . Fastest Speed 50 | 50 120 Average Speed 116 | 108 122 Slowest Speed 160 | 120 160 Overloaded Moves . | . . Propulsion Burnouts . | . . Robots Hopped . | . . Cave-ins Triggered . | . . Exploration Rate (%) 9 | 4 15 Regions Visited 1 Branch Regions . Pre-discovered Areas . | . . Known Exits Taken . | . . Unknown Exits Taken 1 | 1 . Scrap Searched . | . . Spaces Dug . | . . Terrain Destroyed 4 | . 4 Melee . | . . Projectile . | . . AOE 4 | . 4 Actions | -11 -10 --------- Run | Scr Mat Total 192 | 58 134 Wait 21 | 1 20 Move 116 | 49 67 Hop . | . . Pick Up 2 | 2 . Fast Attach 9 | 6 3 Attach 1 | . 1 Detach . | . . Swap . | . . Drop . | . . Fire 25 | . 25 Melee . | . . Ram . | . . Kick 18 | . 18 Crush . | . . Escape Stasis . | . . Rewire . | . . Trap . | . . Miscellaneous . | . . Route ------- -11/Scrapyard -10/Materials History --------- Turn | Location | Event 5 | -11/Scrapyard | Discovered new exit (range 16) 67 | -11/Scrapyard | Entered Materials 215 | -10/Materials | Core integrity fell below 50% 260 | -10/Materials | Core integrity fell below 20% 267 | -10/Materials | Destroyed by G-47 Trooper with Particle Gun Last Messages --------------- 00235_ K-01 Serf collects debris. 00237_ Sml. Laser destroyed. 00239_ Acquired Imp. Heat Sink. 00239_ K-01 Serf collects debris. 00240_ R-06 Scavenger collects Ion Engine. 00242_ Acquired Aluminum Leg. 00242_ K-01 Serf collects debris. 00244_ Acquired 37 matter. 00244_ K-01 Serf collects debris. 00246_ Slammed into G-47 Trooper. 00246_ Destabilizing: System corrupted (+2). 00247_ Slammed into G-47 Trooper. 00248_ Kicked G-47 Trooper out of the way. 00251_ Slammed into G-47 Trooper. 00257_ Kicked G-47 Trooper out of the way. 00259_ Slammed into G-47 Trooper. 00264_ Kicked G-47 Trooper out of the way. 00265_ Slammed into G-47 Trooper. 00265_ Destabilizing: System corrupted (+1). 00266_ Slammed into G-47 Trooper. Map ----- +----------------------------------------------------+ | ?????# # """ #?????????????????????? | | ?????# # #?????????????????????? | | ?????# ### ########?????????????????????? | | ?????# #?# ########????????????????????????????? | | ?????# #?# #???????????????????????????????????? | | ?????# #?# #???????????????????????????????????? | | ?????# #?# +???????????????????????????????????? | | ??####+#?# #???????????????????????????????????? | | ??# #?# #???????????????????????????????????? | | ??#"" #?# #???????????????????????????????????? | | ??#"T #?# #???????????????????????????????????? | | ??#"" #?# #???????????????????????????????????? | | ??# #?# #???????????????????????????????????? | | ??# #?# #???????????????????????????????????? | | ??# ### #???????????????????????????????????? | | ??# * "?# #???????????????????????????????????? | | ??# %="## ##??????????????????????????????????? | | ###/### #??????????????????????????????????? | | = =*%[ #?????#######??????????????????????? | | % != ####### """ #??????????????????????? | | ! # """ #??????????????????????? | | ####### ### # """ #??????????????????????? | | #??????######### #% #??????????????????????? | | ??????????""" + w/ ! #??????????????????????? | | ???????????"Y" # # #??????????????????????? | | ????????????????# # g@#??????????????????????? | | ????????????????# #######??????????????????????? | | ????????????????# ????????????????????????????? | | ????????????????# ???????????????????????????? | | ????????????????# ???????????????????????????? | | ????????????????#######??????????????????????????? | | ?????????????????????????????????????????????????? | | ?????????????????????????????????????????????????? | | ?????????????????????????????????????????????????? | | ?????????????????????????????????????????????????? | | ?????????????????????????????????????????????????? | | ?????????????????????????????????????????????????? | | ?????????????????????????????????????????????????? | | ?????????????????????????????????????????????????? | | ?????????????????????????????????????????????????? | | ?????????????????????????????????????????????????? | | ?????????????????????????????????????????????????? | | ?????????????????????????????????????????????????? | | ?????????????????????????????????????????????????? | | ?????????????????????????????????????????????????? | | ?????????????????????????????????????????????????? | | ?????????????????????????????????????????????????? | | ?????????????????????????????????????????????????? | | ?????????????????????????????????????????????????? | | ?????????????????????????????????????????????????? | +----------------------------------------------------+ Best States ------------- Heat Dissipation 39 Energy Generation 10 Energy Capacity 125 Matter Stores 262 Matter Capacity 300 Sight Range 16 Terrain Scan Density 10 Evasion (%) 40 Recoil Reduction 1 Item Schematics ----------------- None Robot Schematics ------------------ None Fabricated ------------ Nothing Alien Tech Used ----------------- None Achievements -------------- None Challenges ------------ None Game ------ Seed CompactOverloadProjector Manual? 0 Play Time 00:04:45 Cumulative 8.1 hours Start 2019.10.31 @ 23:07:49 End 2019.10.31 @ 23:10:41 Sessions 1 Manual Loads 0 Difficulty Rogue Special Mode None Game No. 8 Rogue 8 Adventurer 0 Explorer 0 Win Type - Total 0 Types 0/0/0/0/0/0/0 Lore% 13 Gallery% 15 Achievement% 14 Wizard Run 0 Options --------- ASCII 0 Keyboard 1 Movement Numpad Keybinds 0 Fullscreen 1 Font 24/Smallcaps Map View 76x50 Tactical HUD 1 Map Filters NONE Filters NONE Steam 1 RUN: 21cd43a7-d9bb-4e69-a37e-2585aa4eb142